fUSD/lending_fUSD_20260506
["ID","MTS","AMOUNT","RATE_DAILY","PERIOD"]
[421660641,1778034649000,-200.0,0.00030135,2]
[421660643,1778034649000,-200.0,0.00030135,2]
[421660645,1778034649000,-150.0,0.00030136,20]
[421660618,1778034649000,-1087.75341447,0.0003013,2]
[421660652,1778034649000,-200.0,0.00030137,2]
[421660661,1778034649000,-15847.2472871,0.00030137,120]
[421660650,1778034649000,-152.309585,0.00030137,7]
[421660663,1778034649000,-2127.42212672,0.00030137,120]
[421660658,1778034649000,-649.0,0.00030137,120]
[421660656,1778034649000,-200.0,0.00030137,40]
[421660667,1778034649000,-156.74,0.00030137,2]
[421660669,1778034649000,-156.736,0.00030137,30]
[421660671,1778034649000,-1058.9056315,0.000302,2]
[421660675,1778034649000,-401.06,0.000302,2]
[421660673,1778034649000,-1779.4,0.000302,14]
[421660552,1778034649000,-200.0,0.0003,2]
[421660654,1778034649000,-299.51,0.00030137,2]
[421660616,1778034649000,-1000.0,0.00030121,7]
[421660647,1778034649000,-232.4,0.00030137,2]
[421660612,1778034649000,-1000.0,0.00030117,7]
[421660556,1778034649000,-169.0,0.0003,2]
[421660614,1778034649000,-1000.0,0.00030119,7]
[421660562,1778034649000,-1000.0,0.00030001,7]
[421660567,1778034649000,-2000.0,0.00030037,7]
[421660577,1778034649000,-2000.0,0.00030037,7]
[421660579,1778034649000,-2000.0,0.00030037,7]
[421660583,1778034649000,-2000.0,0.00030037,7]
[421660586,1778034649000,-2000.0,0.00030037,7]
[421660590,1778034649000,-1000.0,0.00030037,7]
[421660568,1778034649000,-2000.0,0.00030037,7]
[421660588,1778034649000,-2000.0,0.00030037,7]
[421660571,1778034649000,-2000.0,0.00030037,7]
[421660581,1778034649000,-2000.0,0.00030037,7]
[421660610,1778034649000,-1000.0,0.00030104,7]
[421660608,1778034649000,-744.82,0.000301,7]
[421660575,1778034649000,-2000.0,0.00030037,7]
[421660602,1778034649000,-1000.0,0.00030087,7]
[421660598,1778034649000,-289.47091096,0.00030082,14]
[421660600,1778034649000,-5053.42959064,0.00030084,2]
[421660606,1778034649000,-1000.0,0.00030098,7]
[421660596,1778034649000,-1000.0,0.00030077,7]
[421660594,1778034649000,-1000.0,0.00030066,7]
[421660592,1778034649000,-1000.0,0.00030045,7]
[421660573,1778034649000,-2000.0,0.00030037,7]
[421660604,1778034649000,-1062.61,0.00030091,30]
[421660742,1778034650000,-160.0,0.00031,30]
[421660747,1778034650000,-200.0,0.00031037,2]
[421660749,1778034650000,-200.0,0.00031048,2]
[421660748,1778034650000,-200.0,0.00031048,2]
[421660744,1778034650000,-78194.19,0.00031,7]
[421660734,1778034650000,-507.63,0.00030993,120]
[421660754,1778034650000,-158.358264,0.000311,7]
[421660743,1778034650000,-160.0,0.00031,44]
[421660741,1778034650000,-463.3,0.00031,7]
[421660738,1778034650000,-1779.4,0.00031,14]
[421660745,1778034650000,-1062.61,0.00031,30]
[421660753,1778034650000,-158.358264,0.000311,7]
[421660746,1778034650000,-150.0,0.00031011,2]
[421660768,1778034650000,-152.0,0.0003126,30]
[421660752,1778034650000,-158.358264,0.000311,7]
[421660750,1778034650000,-200.0,0.00031048,2]
[421660755,1778034650000,-579.307916,0.000311,7]
[421660757,1778034650000,-599.837577,0.000311,7]
[421660758,1778034650000,-579.307916,0.000311,7]
[421660756,1778034650000,-1576.496441,0.000311,7]
[421660765,1778034650000,-1576.496441,0.000311,7]
[421660760,1778034650000,-599.837577,0.000311,7]
[421660767,1778034650000,-237.0,0.00031259,30]
[421660764,1778034650000,-579.307916,0.000311,7]
[421660766,1778034650000,-599.837577,0.000311,7]
[421660732,1778034650000,-1630.30299419,0.0003084,2]
[421660751,1778034650000,-158.358264,0.000311,7]
[421660740,1778034650000,-161.49,0.00031,2]
[421660686,1778034650000,-463.3,0.000304,7]
[421660730,1778034650000,-1062.61,0.00030818,30]
[421660680,1778034650000,-157.0,0.00030261,3]
[421660682,1778034650000,-1062.61,0.00030273,30]
[421660762,1778034650000,-1576.496441,0.000311,7]
[421660690,1778034650000,-184.97,0.00030411,120]
[421660678,1778034650000,-2191.8,0.00030239,2]
[421660684,1778034650000,-500.0,0.00030299,2]
[421660692,1778034650000,-7542.19124387,0.0003042,2]
[421660694,1778034650000,-605.08850061,0.00030423,2]
[421660696,1778034650000,-200.0,0.00030436,2]
[421660706,1778034650000,-515.45,0.000305,7]
[421660698,1778034650000,-200.0,0.00030436,2]
[421660704,1778034650000,-1062.61,0.00030455,30]
[421660736,1778034650000,-4881.23831783,0.00031,30]
[421660711,1778034650000,-254.88,0.00030737,2]
[421660710,1778034650000,-150.0,0.00030734,2]
[421660700,1778034650000,-200.0,0.00030436,2]
[421660702,1778034650000,-200.0,0.00030437,2]
[421660712,1778034650000,-200.0,0.00030737,2]
[421660714,1778034650000,-1268.0,0.00030739,2]
[421660716,1778034650000,-1170.0,0.00030739,2]
[421660726,1778034650000,-200.0,0.00030741,2]
[421660724,1778034650000,-200.0,0.00030741,2]
[421660718,1778034650000,-4957.233,0.00030739,2]
[421660722,1778034650000,-200.0,0.00030741,2]
[421660728,1778034650000,-200.0,0.00030791,2]
[421660720,1778034650000,-3536.0,0.00030739,2]
[421660708,1778034650000,-1062.61,0.00030636,30]
[421660763,1778034650000,-599.837577,0.000311,7]
[421660688,1778034650000,-160.0,0.000304,42]
[421660761,1778034650000,-579.307916,0.000311,7]
[421660798,1778034650000,-2000.0,0.00031507,30]
[421660795,1778034650000,-2000.0,0.00031507,30]
[421660806,1778034650000,-2000.0,0.00031507,30]
[421660805,1778034650000,-1033.76,0.00031507,30]
[421660801,1778034650000,-2000.0,0.00031507,30]
[421660803,1778034650000,-2000.0,0.00031507,30]
[421660804,1778034650000,-2000.0,0.00031507,30]
[421660802,1778034650000,-2000.0,0.00031507,30]
[421660813,1778034650000,-150.0,0.00031781,30]
[421660811,1778034650000,-150.0,0.00031734,2]
[421660808,1778034650000,-2000.0,0.00031507,30]
[421660810,1778034650000,-200.0,0.00031642,2]
[421660799,1778034650000,-2000.0,0.00031507,30]
[421660809,1778034650000,-200.0,0.00031637,2]
[421660818,1778034650000,-200.0,0.00031937,2]
[421660817,1778034650000,-896.60107137,0.0003185,2]
[421660820,1778034650000,-224.6462411,0.00032,120]
[421660816,1778034650000,-896.60107137,0.0003185,2]
[421660819,1778034650000,-788.89623703,0.00031987,2]
[421660814,1778034650000,-1779.4,0.000318,14]
[421660821,1778034650000,-203.68744665,0.00032,120]
[421660823,1778034650000,-406.67858043,0.00032,120]
[421660822,1778034650000,-1756.22150214,0.00032,2]
[421660825,1778034650000,-199.44415765,0.00032,120]
[421660824,1778034650000,-427.00810398,0.00032,120]
[421660759,1778034650000,-1576.496441,0.000311,7]
[421660812,1778034650000,-9909.74782394,0.0003175,2]
[421660796,1778034650000,-2000.0,0.00031507,30]
[421660815,1778034650000,-896.60107138,0.0003185,2]
[421660807,1778034650000,-2000.0,0.00031507,30]
[421660797,1778034650000,-2000.0,0.00031507,30]
[421660769,1778034650000,-183.0,0.0003126,30]
[421660771,1778034650000,-793.0,0.0003126,30]
[421660777,1778034650000,-202.0,0.00031265,30]
[421660780,1778034650000,-500.0,0.00031277,7]
[421660778,1778034650000,-1047.0,0.00031265,30]
[421660772,1778034650000,-385.0,0.0003126,30]
[421660781,1778034650000,-500.0,0.00031277,30]
[421660776,1778034650000,-198.0,0.00031265,30]
[421660773,1778034650000,-153.0,0.0003126,30]
[421660775,1778034650000,-536.0,0.00031265,30]
[421660779,1778034650000,-500.0,0.00031277,2]
[421660774,1778034650000,-214470.24876698,0.00031264,4]
[421660770,1778034650000,-293.0,0.0003126,30]
[421660786,1778034650000,-693.3919763,0.00031428,2]
[421660782,1778034650000,-200.0,0.00031337,2]
[421660794,1778034650000,-2000.0,0.00031507,30]
[421660792,1778034650000,-2000.0,0.00031507,30]
[421660788,1778034650000,-150.0,0.000315,2]
[421660787,1778034650000,-500.0,0.00031428,2]
[421660791,1778034650000,-2000.0,0.00031507,30]
[421660784,1778034650000,-200.0,0.00031359,2]
[421660789,1778034650000,-200.01704937,0.000315,2]
[421660785,1778034650000,-160.0,0.000314,45]
[421660783,1778034650000,-200.0,0.00031359,2]
[421660793,1778034650000,-2000.0,0.00031507,30]
[421660800,1778034650000,-2000.0,0.00031507,30]
[421660790,1778034650000,-2000.0,0.00031507,30]
[421660853,1778034651000,-160.0,0.000324,49]
[421660849,1778034651000,-151.0,0.00032279,7]
[421660852,1778034651000,-509.29335306,0.00032341,2]
[421660857,1778034651000,-254.44,0.000326,14]
[421660851,1778034651000,-150.74090789,0.00032305,2]
[421660856,1778034651000,-150.0,0.00032562,2]
[421660858,1778034651000,-150.0,0.00032734,2]
[421660862,1778034651000,-500.0,0.00032876,2]
[421660859,1778034651000,-200.0,0.00032837,2]
[421660850,1778034651000,-151.0,0.00032279,7]
[421660865,1778034651000,-304.657235,0.00032877,7]
[421660861,1778034651000,-613.44514569,0.00032876,120]
[421660863,1778034651000,-11598.185093,0.00032877,120]
[421660860,1778034651000,-707.3915,0.00032867,120]
[421660864,1778034651000,-232.4,0.00032877,2]
[421660866,1778034651000,-304.657235,0.00032877,7]
[421660869,1778034651000,-304.657235,0.00032877,7]
[421660870,1778034651000,-304.657235,0.00032877,7]
[421660868,1778034651000,-304.657235,0.00032877,7]
[421660848,1778034651000,-151.0,0.00032279,7]
[421660871,1778034651000,-304.657235,0.00032877,7]
[421660867,1778034651000,-304.657235,0.00032877,7]
[421660855,1778034651000,-200.0,0.00032537,2]
[421660834,1778034651000,-293.0,0.0003226,30]
[421660854,1778034651000,-526.67573567,0.00032465,2]
[421660879,1778034651000,-318.019443,0.00032877,7]
[421660827,1778034651000,-180.77440941,0.00032,120]
[421660826,1778034651000,-160.0,0.00032,30]
[421660828,1778034651000,-160.0,0.00032,47]
[421660831,1778034651000,-237.0,0.00032259,30]
[421660833,1778034651000,-183.0,0.0003226,30]
[421660832,1778034651000,-152.0,0.0003226,30]
[421660830,1778034651000,-200.0,0.00032237,2]
[421660829,1778034651000,-2191.8,0.0003221,5]
[421660835,1778034651000,-793.0,0.0003226,30]
[421660836,1778034651000,-385.0,0.0003226,30]
[421660837,1778034651000,-153.0,0.0003226,30]
[421660841,1778034651000,-1047.0,0.00032265,30]
[421660840,1778034651000,-202.0,0.00032265,30]
[421660842,1778034651000,-154.699416,0.00032279,7]
[421660838,1778034651000,-536.0,0.00032265,30]
[421660839,1778034651000,-198.0,0.00032265,30]
[421660843,1778034651000,-154.699416,0.00032279,7]
[421660844,1778034651000,-151.0,0.00032279,7]
[421660847,1778034651000,-154.699416,0.00032279,7]
[421660845,1778034651000,-154.699416,0.00032279,7]
[421660846,1778034651000,-151.0,0.00032279,7]
[421660874,1778034651000,-304.657235,0.00032877,7]
[421660872,1778034651000,-304.657235,0.00032877,7]
[421660922,1778034651000,-160.0,0.00033,50]
[421660901,1778034651000,-500.0,0.00032877,2]
[421660900,1778034651000,-500.0,0.00032877,2]
[421660906,1778034651000,-4000.0,0.00032877,60]
[421660898,1778034651000,-318.019443,0.00032877,7]
[421660907,1778034651000,-1291.071661,0.00032877,7]
[421660905,1778034651000,-805.87,0.00032877,2]
[421660908,1778034651000,-1291.071661,0.00032877,7]
[421660911,1778034651000,-7542.19124387,0.00032997,2]
[421660910,1778034651000,-1291.071661,0.00032877,7]
[421660916,1778034651000,-1779.4,0.00033,14]
[421660914,1778034651000,-406.67858043,0.00033,120]
[421660912,1778034651000,-224.6462411,0.00033,120]
[421660915,1778034651000,-151.0,0.00033,7]
[421660913,1778034651000,-203.68744665,0.00033,120]
[421660921,1778034651000,-180.77440941,0.00033,120]
[421660918,1778034651000,-199.44415765,0.00033,120]
[421660917,1778034651000,-427.00810398,0.00033,120]
[421660919,1778034651000,-463.3,0.00033,30]
[421660920,1778034651000,-570.278457,0.00033,14]
[421660923,1778034651000,-515.45,0.00033,30]
[421660877,1778034651000,-151.0,0.00032877,7]
[421660903,1778034651000,-500.0,0.00032877,2]
[421660909,1778034651000,-1291.071661,0.00032877,7]
[421660904,1778034651000,-229.76505251,0.00032877,2]
[421660899,1778034651000,-500.0,0.00032877,2]
[421660873,1778034651000,-304.657235,0.00032877,7]
[421660875,1778034651000,-304.657235,0.00032877,7]
[421660878,1778034651000,-162.383069,0.00032877,7]
[421660876,1778034651000,-304.657235,0.00032877,7]
[421660880,1778034651000,-318.019443,0.00032877,7]
[421660883,1778034651000,-318.019443,0.00032877,7]
[421660902,1778034651000,-500.0,0.00032877,2]
[421660882,1778034651000,-318.019443,0.00032877,7]
[421660887,1778034651000,-318.019443,0.00032877,7]
[421660885,1778034651000,-318.019443,0.00032877,7]
[421660886,1778034651000,-318.019443,0.00032877,7]
[421660884,1778034651000,-318.019443,0.00032877,7]
[421660889,1778034651000,-318.019443,0.00032877,7]
[421660881,1778034651000,-318.019443,0.00032877,7]
[421660896,1778034651000,-318.019443,0.00032877,7]
[421660895,1778034651000,-318.019443,0.00032877,7]
[421660894,1778034651000,-318.019443,0.00032877,7]
[421660890,1778034651000,-318.019443,0.00032877,7]
[421660891,1778034651000,-318.019443,0.00032877,7]
[421660892,1778034651000,-318.019443,0.00032877,7]
[421660888,1778034651000,-318.019443,0.00032877,7]
[421660893,1778034651000,-318.019443,0.00032877,7]
[421660897,1778034651000,-318.019443,0.00032877,7]
[421660962,1778034652000,-150.0,0.00033734,2]
[421660972,1778034652000,-427.00810398,0.000339,120]
[421660973,1778034652000,-150.0,0.00033952,2]
[421660970,1778034652000,-224.6462411,0.000339,120]
[421660964,1778034652000,-1170.0,0.00033739,2]
[421660963,1778034652000,-1268.0,0.00033739,2]
[421660956,1778034652000,-1047.0,0.00033265,30]
[421660955,1778034652000,-202.0,0.00033265,30]
[421660954,1778034652000,-198.0,0.00033265,30]
[421660958,1778034652000,-159.11,0.00033425,30]
[421660965,1778034652000,-427.135,0.00033739,2]
[421660957,1778034652000,-160.0,0.000334,52]
[421660961,1778034652000,-3868.58269389,0.00033715,2]
[421660974,1778034652000,-221.0,0.00033952,2]
[421660984,1778034652000,-500.0,0.00033989,60]
[421660966,1778034652000,-278.0,0.00033821,30]
[421660971,1778034652000,-406.67858043,0.000339,120]
[421660969,1778034652000,-173.06858866,0.0003389,2]
[421660968,1778034652000,-9909.74782394,0.00033883,2]
[421660976,1778034652000,-373.4918941,0.00033989,60]
[421660975,1778034652000,-158.4902185,0.00033989,60]
[421660978,1778034652000,-159.2064289,0.00033989,60]
[421660979,1778034652000,-500.0,0.00033989,60]
[421660982,1778034652000,-756.5324272,0.00033989,60]
[421660980,1778034652000,-500.0,0.00033989,60]
[421660977,1778034652000,-420.2733582,0.00033989,60]
[421660981,1778034652000,-500.0,0.00033989,60]
[421660953,1778034652000,-536.0,0.00033265,30]
[421660967,1778034652000,-5053.42959064,0.00033866,2]
[421660948,1778034652000,-183.0,0.0003326,30]
[421660933,1778034652000,-1774.795959,0.00033,7]
[421660952,1778034652000,-153.0,0.0003326,30]
[421660924,1778034652000,-199.697122,0.00033,7]
[421660927,1778034652000,-199.697122,0.00033,7]
[421660926,1778034652000,-199.697122,0.00033,7]
[421660925,1778034652000,-199.697122,0.00033,7]
[421660928,1778034652000,-151.0,0.00033,7]
[421660932,1778034652000,-483.227326,0.00033,7]
[421660929,1778034652000,-483.227327,0.00033,7]
[421660930,1778034652000,-483.227327,0.00033,7]
[421660931,1778034652000,-483.227327,0.00033,7]
[421660934,1778034652000,-1774.795959,0.00033,7]
[421660936,1778034652000,-1774.795956,0.00033,7]
[421660947,1778034652000,-152.0,0.0003326,30]
[421660946,1778034652000,-237.0,0.00033259,30]
[421660935,1778034652000,-1774.795959,0.00033,7]
[421660938,1778034652000,-500.1,0.00033044,31]
[421660937,1778034652000,-500.1,0.00033044,31]
[421660939,1778034652000,-500.14244316,0.00033044,31]
[421660942,1778034652000,-7075.42328501,0.00033151,2]
[421660941,1778034652000,-227.29539057,0.00033151,6]
[421660945,1778034652000,-251.34,0.00033191,2]
[421660944,1778034652000,-157.0,0.00033156,3]
[421660940,1778034652000,-350.0,0.00033137,2]
[421660943,1778034652000,-1768.78856389,0.00033151,2]
[421660949,1778034652000,-293.0,0.0003326,30]
[421660959,1778034652000,-350.0,0.00033437,2]
[421660951,1778034652000,-385.0,0.0003326,30]
[421660950,1778034652000,-793.0,0.0003326,30]
[421660960,1778034652000,-489.81771043,0.000335,2]
[421660994,1778034652000,-719.04747942,0.00034167,2]
[421661046,1778034652000,-406.67858043,0.00035,120]
[421660985,1778034652000,-704.3748623,0.00033989,60]
[421661013,1778034652000,-669.57211963,0.000343,7]
[421661021,1778034652000,-212.990149,0.00034544,7]
[421661020,1778034652000,-212.990149,0.00034544,7]
[421661023,1778034652000,-212.990149,0.00034544,7]
[421661034,1778034652000,-416.57066889,0.00034999,7]
[421661031,1778034652000,-500.0,0.00034999,2]
[421661022,1778034652000,-212.990149,0.00034544,7]
[421661025,1778034652000,-150.0,0.00034734,2]
[421661033,1778034652000,-500.0,0.00034999,2]
[421661032,1778034652000,-500.0,0.00034999,2]
[421661024,1778034652000,-150.43262805,0.00034613,83]
[421661027,1778034652000,-163.08,0.00034757,120]
[421661026,1778034652000,-13329.07,0.0003475,30]
[421661028,1778034652000,-1500.0,0.00034795,2]
[421661029,1778034652000,-654.60287566,0.0003488,120]
[421661030,1778034652000,-4028.98561305,0.00034993,2]
[421660995,1778034652000,-2191.8,0.00034182,7]
[421661038,1778034652000,-4960.0,0.00035,60]
[421661040,1778034652000,-150.0,0.00035,2]
[421661036,1778034652000,-500.0,0.00034999,2]
[421661039,1778034652000,-224.6462411,0.00035,120]
[421661044,1778034652000,-441.97,0.00035,2]
[421661042,1778034652000,-1945.06694869,0.00035,2]
[421661037,1778034652000,-500.0,0.00034999,2]
[421661041,1778034652000,-180.187,0.00035,2]
[421661043,1778034652000,-36986.18128792,0.00035,30]
[421661045,1778034652000,-600.0,0.00035,2]
[421661015,1778034652000,-492.83,0.00034544,60]
[421661017,1778034652000,-381.87,0.00034544,60]
[421661035,1778034652000,-537.38631548,0.00034999,30]
[421661009,1778034652000,-198.0,0.00034265,30]
[421660983,1778034652000,-500.0,0.00033989,60]
[421661014,1778034652000,-160.0,0.000344,55]
[421660991,1778034652000,-250.0,0.00034047,7]
[421660993,1778034652000,-169.0,0.0003411,2]
[421660987,1778034652000,-500.0,0.00033989,60]
[421660989,1778034652000,-160.0,0.00034,54]
[421660990,1778034652000,-250.0,0.00034047,7]
[421660988,1778034652000,-586.0147076,0.00033989,60]
[421660992,1778034652000,-788.89623703,0.00034073,2]
[421660997,1778034652000,-4000.0,0.00034247,60]
[421660999,1778034652000,-302.67149318,0.0003425,2]
[421661007,1778034652000,-153.0,0.0003426,30]
[421661008,1778034652000,-536.0,0.00034265,30]
[421660996,1778034652000,-150.0,0.0003419,2]
[421660986,1778034652000,-510.8519362,0.00033989,60]
[421661000,1778034652000,-5000.0,0.00034258,2]
[421661001,1778034652000,-237.0,0.00034259,30]
[421661002,1778034652000,-152.0,0.0003426,30]
[421661005,1778034652000,-793.0,0.0003426,30]
[421661006,1778034652000,-385.0,0.0003426,30]
[421661004,1778034652000,-293.0,0.0003426,30]
[421661003,1778034652000,-183.0,0.0003426,30]
[421661019,1778034652000,-15787.24,0.00034544,60]
[421661011,1778034652000,-1047.0,0.00034265,30]
[421661018,1778034652000,-1758.69,0.00034544,60]
[421661012,1778034652000,-1215.49642839,0.000343,7]
[421661016,1778034652000,-2372.44,0.00034544,60]
[421661010,1778034652000,-202.0,0.00034265,30]
[421660998,1778034652000,-1104.10525001,0.00034247,5]
[421661073,1778034653000,-1291.071661,0.00035,7]
[421661068,1778034653000,-199.697122,0.00035,7]
[421661070,1778034653000,-151.0,0.00035,7]
[421661075,1778034653000,-158.358264,0.00035,7]
[421661069,1778034653000,-199.697122,0.00035,7]
[421661071,1778034653000,-1291.071661,0.00035,7]
[421661074,1778034653000,-1291.071661,0.00035,7]
[421661080,1778034653000,-579.307916,0.00035,7]
[421661077,1778034653000,-158.358264,0.00035,7]
[421661078,1778034653000,-158.358267,0.00035,7]
[421661079,1778034653000,-78194.19,0.00035,7]
[421661081,1778034653000,-1576.496441,0.00035,7]
[421661083,1778034653000,-579.307916,0.00035,7]
[421661085,1778034653000,-1576.496441,0.00035,7]
[421661084,1778034653000,-304.657235,0.00035,7]
[421661065,1778034653000,-212.990149,0.00035,7]
[421661076,1778034653000,-158.358264,0.00035,7]
[421661066,1778034653000,-199.697122,0.00035,7]
[421661049,1778034653000,-19440.60277257,0.00035,120]
[421661064,1778034653000,-212.990149,0.00035,7]
[421661082,1778034653000,-599.837577,0.00035,7]
[421661048,1778034653000,-1740.04644166,0.00035,14]
[421661053,1778034653000,-154.699416,0.00035,7]
[421661055,1778034653000,-151.0,0.00035,7]
[421661052,1778034653000,-160.0,0.00035,57]
[421661047,1778034653000,-151.0,0.00035,7]
[421661054,1778034653000,-154.699416,0.00035,7]
[421661051,1778034653000,-150.0,0.00035,2]
[421661050,1778034653000,-427.00810398,0.00035,120]
[421661056,1778034653000,-154.699416,0.00035,7]
[421661057,1778034653000,-151.0,0.00035,7]
[421661058,1778034653000,-154.699416,0.00035,7]
[421661061,1778034653000,-151.0,0.00035,7]
[421661060,1778034653000,-151.0,0.00035,7]
[421661059,1778034653000,-151.0,0.00035,7]
[421661063,1778034653000,-212.990149,0.00035,7]
[421661062,1778034653000,-212.990149,0.00035,7]
[421661067,1778034653000,-199.697122,0.00035,7]
[421661086,1778034653000,-599.837577,0.00035,7]
[421661072,1778034653000,-1291.071661,0.00035,7]
[421661090,1778034653000,-599.837577,0.00035,7]
[421661111,1778034653000,-154.16826,0.000355,7]
[421661110,1778034653000,-160.0,0.000354,58]
[421661109,1778034653000,-1047.0,0.00035265,30]
[421661112,1778034653000,-293.0,0.00035518,30]
[421661113,1778034653000,-279.08,0.0003553,2]
[421661116,1778034653000,-707.3915,0.00035606,120]
[421661121,1778034653000,-500.0,0.00035616,7]
[421661120,1778034653000,-500.0,0.00035616,5]
[421661123,1778034653000,-500.0,0.00035616,7]
[421661117,1778034653000,-707.3915,0.00035606,120]
[421661126,1778034653000,-500.0,0.00035616,7]
[421661119,1778034653000,-4000.0,0.00035616,60]
[421661118,1778034653000,-4496.81661421,0.0003561,2]
[421661127,1778034653000,-500.0,0.00035616,7]
[421661124,1778034653000,-500.0,0.00035616,7]
[421661125,1778034653000,-500.0,0.00035616,7]
[421661088,1778034653000,-304.657235,0.00035,7]
[421661108,1778034653000,-202.0,0.00035265,30]
[421661107,1778034653000,-198.0,0.00035265,30]
[421661122,1778034653000,-500.0,0.00035616,7]
[421661105,1778034653000,-153.0,0.0003526,30]
[421661106,1778034653000,-536.0,0.00035265,30]
[421661089,1778034653000,-1576.496441,0.00035,7]
[421661087,1778034653000,-579.307916,0.00035,7]
[421661092,1778034653000,-579.307913,0.00035,7]
[421661094,1778034653000,-599.837581,0.00035,7]
[421661093,1778034653000,-1576.496436,0.00035,7]
[421661096,1778034653000,-293.0,0.00035,30]
[421661095,1778034653000,-304.657235,0.00035,7]
[421661098,1778034653000,-159.11,0.00035068,30]
[421661091,1778034653000,-304.657235,0.00035,7]
[421661102,1778034653000,-293.0,0.0003526,30]
[421661099,1778034653000,-237.0,0.00035259,30]
[421661101,1778034653000,-183.0,0.0003526,30]
[421661100,1778034653000,-152.0,0.0003526,30]
[421661114,1778034653000,-254.65,0.0003553,2]
[421661104,1778034653000,-385.0,0.0003526,30]
[421661115,1778034653000,-7542.19124387,0.00035573,2]
[421661097,1778034653000,-365107.15063289,0.00035,2]
[421661103,1778034653000,-793.0,0.0003526,30]
[421661173,1778034654000,-198.0,0.00036265,30]
[421661170,1778034654000,-385.0,0.0003626,30]
[421661171,1778034654000,-153.0,0.0003626,30]
[421661168,1778034654000,-293.0,0.0003626,30]
[421661164,1778034654000,-203.07346901,0.00036244,2]
[421661161,1778034654000,-157.0,0.00036051,3]
[421661163,1778034654000,-788.89623703,0.0003616,2]
[421661160,1778034654000,-9909.74782394,0.00036016,2]
[421661159,1778034654000,-500.0,0.00036015,2]
[421661158,1778034654000,-160.0,0.00036,60]
[421661169,1778034654000,-793.0,0.0003626,30]
[421661157,1778034654000,-744.82,0.00036,7]
[421661162,1778034654000,-2191.8,0.00036153,30]
[421661172,1778034654000,-536.0,0.00036265,30]
[421661187,1778034654000,-7837.50243965,0.0003683,2]
[421661177,1778034654000,-1000.0,0.00036438,5]
[421661176,1778034654000,-160.0,0.000364,61]
[421661180,1778034654000,-447.58,0.00036656,7]
[421661179,1778034654000,-295.12723101,0.00036655,2]
[421661175,1778034654000,-1047.0,0.00036265,30]
[421661178,1778034654000,-251.34,0.0003651,2]
[421661182,1778034654000,-1000.0,0.00036712,5]
[421661181,1778034654000,-159.11,0.00036712,30]
[421661191,1778034654000,-3312.71,0.00036986,60]
[421661185,1778034654000,-1170.0,0.00036739,2]
[421661188,1778034654000,-384.63382356,0.00036906,2]
[421661190,1778034654000,-2000.0,0.00036986,60]
[421661156,1778034654000,-427.00810398,0.00036,120]
[421661174,1778034654000,-202.0,0.00036265,30]
[421661167,1778034654000,-183.0,0.0003626,30]
[421661136,1778034654000,-500.0,0.00035616,7]
[421661165,1778034654000,-237.0,0.00036259,30]
[421661128,1778034654000,-500.0,0.00035616,7]
[421661130,1778034654000,-500.0,0.00035616,7]
[421661140,1778034654000,-500.0,0.00035616,7]